Workbook

Sheet Listing collectes
B4: Champ 1 | C4: Date | D4: Champ 2 | E4: Champ 3 | F4: Données 1 | G4: Données 2 | H4: Données 3 | I4: Données 4 | J4: Ratio | K4: Date suivi | L4: Échéance | M4: Données 5 | N4: Champ 4 | O4: Champ 5 | P4: Jour
C5: 2025-11-03 | F5: 64 | G5: 48 | H5: 199 | I5: 99 | J5: =IF(I5="","",I5/F5) -> 154.7% | K5: 2025-10-13 | L5: =IF(C5=K5, "J", IF(C5>K5, "J-" & IF(C5-K5<10, "0", "") & C5-K5, IF(AND(B5=#REF!,C5=#REF!,D5=#REF!,K5=#REF!), "Réalisé", "J+" & IF(K5-C5<10, "0", "") & K5-C5 ) ) ) -> J-21 | M5: 6 | N5: =IF(M5="","",M5/I5) -> 6.1% | P5: =TEXT(C5,"jjjj") -> lundi
C6: 2025-11-03 | F6: 64 | G6: 48 | H6: 199 | I6: 99 | J6: 154.7% | K6: 2025-10-14 | L6: =IF(C6=K6, "J", IF(C6>K6, "J-" & IF(C6-K6<10, "0", "") & C6-K6, IF(AND(B6=B5,C6=C5,D6=D5,K6=K5), "Réalisé", "J+" & IF(K6-C6<10, "0", "") & K6-C6 ) ) ) -> J-20 | M6: 6 | N6: 6.1% | P6: lundi
C7: 2025-11-03 | F7: 64 | G7: 48 | H7: 199 | I7: 99 | J7: 154.7% | K7: 2025-10-15 | L7: J-19 | M7: 7 | N7: 7.1% | P7: lundi
C8: 2025-11-03 | F8: 64 | G8: 48 | H8: 199 | I8: 99 | J8: 154.7% | K8: 2025-10-16 | L8: J-18 | M8: 7 | N8: 7.1% | P8: lundi
C9: 2025-11-03 | F9: 64 | G9: 48 | H9: 199 | I9: 99 | J9: 154.7% | K9: 2025-10-17 | L9: J-17 | M9: 7 | N9: 7.1% | P9: lundi
C10: 2025-11-03 | F10: 64 | G10: 48 | H10: 199 | I10: 99 | J10: 154.7% | K10: 2025-10-18 | L10: J-16 | M10: 7 | N10: 7.1% | P10: lundi
C11: 2025-11-03 | F11: 64 | G11: 48 | H11: 199 | I11: 99 | J11: 154.7% | K11: 2025-10-19 | L11: J-15 | M11: 7 | N11: 7.1% | P11: lundi
C12: 2025-11-03 | F12: 64 | G12: 48 | H12: 199 | I12: 99 | J12: 154.7% | K12: 2025-10-20 | L12: J-14 | M12: 7 | N12: 7.1% | P12: lundi
C13: 2025-11-03 | F13: 64 | G13: 48 | H13: 199 | I13: 99 | J13: 154.7% | K13: 2025-10-21 | L13: J-13 | M13: 11 | N13: 11.1% | P13: lundi
C14: 2025-11-03 | F14: 64 | G14: 48 | H14: 199 | I14: 99 | J14: 154.7% | K14: 2025-10-22 | L14: J-12 | M14: 10 | N14: 10.1% | P14: lundi
C15: 2025-11-03 | F15: 64 | G15: 48 | H15: 199 | I15: 99 | J15: 154.7% | K15: 2025-10-23 | L15: J-11 | M15: 10 | N15: 10.1% | P15: lundi
C16: 2025-11-03 | F16: 64 | G16: 48 | H16: 199 | I16: 99 | J16: 154.7% | K16: 2025-10-24 | L16: J-10 | M16: 10 | N16: 10.1% | P16: lundi
C17: 2025-11-03 | F17: 64 | G17: 48 | H17: 199 | I17: 99 | J17: 154.7% | K17: 2025-10-25 | L17: J-09 | M17: 11 | N17: 11.1% | P17: lundi
C18: 2025-11-03 | F18: 64 | G18: 48 | H18: 199 | I18: 99 | J18: 154.7% | K18: 2025-10-26 | L18: J-08 | M18: 11 | N18: 11.1% | P18: lundi
C19: 2025-11-03 | F19: 64 | G19: 48 | H19: 199 | I19: 99 | J19: 154.7% | K19: 2025-10-27 | L19: J-07 | M19: 11 | N19: 11.1% | P19: lundi
C20: 2025-11-03 | F20: 64 | G20: 48 | H20: 199 | I20: 99 | J20: 154.7% | K20: 2025-10-28 | L20: J-06 | M20: 11 | N20: 11.1% | P20: lundi
C21: 2025-11-03 | F21: 64 | G21: 48 | H21: 199 | I21: 99 | J21: =IF(I21="","",I21/F21) -> 154.7% | K21: 2025-10-29 | L21: J-05 | M21: 13 | N21: =IF(M21="","",M21/I21) -> 13.1% | P21: =TEXT(C21,"jjjj") -> lundi
C22: 2025-11-03 | F22: 64 | G22: 48 | H22: 199 | I22: 99 | J22: 154.7% | K22: 2025-10-30 | L22: J-04 | M22: 15 | N22: 15.2% | P22: lundi
C23: 2025-11-03 | F23: 64 | G23: 48 | H23: 84 | I23: 84 | J23: 131.3% | K23: 2025-10-31 | L23: J-03 | M23: 17 | N23: 20.2% | P23: lundi
C24: 2025-11-03 | F24: 64 | G24: 48 | H24: 84 | I24: 84 | J24: 131.3% | K24: 2025-11-01 | L24: J-02 | M24: 23 | N24: 27.4% | P24: lundi
C25: 2025-11-03 | F25: 64 | G25: 48 | H25: 84 | I25: 84 | J25: 131.3% | K25: 2025-11-02 | L25: J-01 | M25: 26 | N25: 31.0% | P25: lundi
C26: 2025-11-03 | F26: 64 | G26: 48 | H26: 84 | I26: 84 | J26: 131.3% | K26: 2025-11-03 | L26: J | M26: 28 | N26: 33.3% | P26: lundi
C27: 2025-11-03 | F27: 64 | G27: 48 | H27: 84 | I27: 84 | J27: 131.3% | K27: 2025-11-04 | L27: J+01 | M27: =4+13+16 -> 33 | N27: 39.3% | P27: lundi
C28: 2025-11-03 | F28: 64 | G28: 48 | H28: 84 | I28: 84 | J28: 131.3% | K28: 2025-11-04 | L28: Réalisé | M28: =23+11 -> 34 | N28: 40.5% | P28: lundi
C29: 2025-11-03 | F29: 68 | G29: 62 | H29: 126 | I29: 26 | J29: 38.2% | K29: 2025-10-13 | L29: J-21 | M29: 2 | N29: 7.7% | P29: lundi
C30: 2025-11-03 | F30: 68 | G30: 62 | H30: 126 | I30: 26 | J30: 38.2% | K30: 2025-10-14 | L30: J-20 | M30: 2 | N30: 7.7% | P30: lundi
C31: 2025-11-03 | F31: 68 | G31: 62 | H31: 126 | I31: 26 | J31: 38.2% | K31: 2025-10-15 | L31: J-19 | M31: 3 | N31: 11.5% | P31: lundi
C32: 2025-11-03 | F32: 68 | G32: 62 | H32: 126 | I32: 26 | J32: 38.2% | K32: 2025-10-16 | L32: J-18 | M32: 3 | N32: 11.5% | P32: lundi
C33: 2025-11-03 | F33: 68 | G33: 62 | H33: 126 | I33: 26 | J33: 38.2% | K33: 2025-10-17 | L33: J-17 | M33: 4 | N33: 15.4% | P33: lundi
C34: 2025-11-03 | F34: 68 | G34: 62 | H34: 126 | I34: 26 | J34: 38.2% | K34: 2025-10-18 | L34: J-16 | M34: 4 | N34: 15.4% | P34: lundi
C35: 2025-11-03 | F35: 68 | G35: 62 | H35: 126 | I35: 26 | J35: 38.2% | K35: 2025-10-19 | L35: J-15 | M35: 4 | N35: 15.4% | P35: lundi
C36: 2025-11-03 | F36: 68 | G36: 62 | H36: 126 | I36: 26 | J36: 38.2% | K36: 2025-10-20 | L36: J-14 | M36: 6 | N36: 23.1% | P36: lundi
C37: 2025-11-03 | F37: 68 | G37: 62 | H37: 126 | I37: 26 | J37: 38.2% | K37: 2025-10-21 | L37: J-13 | M37: 7 | N37: 26.9% | P37: lundi
C38: 2025-11-03 | F38: 68 | G38: 62 | H38: 126 | I38: 26 | J38: 38.2% | K38: 2025-10-22 | L38: J-12 | M38: 5 | N38: 19.2% | P38: lundi
C39: 2025-11-03 | F39: 68 | G39: 62 | H39: 126 | I39: 26 | J39: 38.2% | K39: 2025-10-23 | L39: J-11 | M39: 6 | N39: 23.1% | P39: lundi
C40: 2025-11-03 | F40: 68 | G40: 62 | H40: 126 | I40: 26 | J40: 38.2% | K40: 2025-10-24 | L40: J-10 | M40: 6 | N40: 23.1% | P40: lundi
C41: 2025-11-03 | F41: 68 | G41: 62 | H41: 126 | I41: 26 | J41: 38.2% | K41: 2025-10-25 | L41: J-09 | M41: 6 | N41: 23.1% | P41: lundi
C42: 2025-11-03 | F42: 68 | G42: 62 | H42: 126 | I42: 26 | J42: 38.2% | K42: 2025-10-26 | L42: J-08 | M42: 7 | N42: 26.9% | P42: lundi
C43: 2025-11-03 | F43: 68 | G43: 62 | H43: 126 | I43: 26 | J43: 38.2% | K43: 2025-10-27 | L43: J-07 | M43: 7 | N43: 26.9% | P43: lundi
C44: 2025-11-03 | F44: 68 | G44: 62 | H44: 126 | I44: 26 | J44: 38.2% | K44: 2025-10-28 | L44: J-06 | M44: 7 | N44: 26.9% | P44: lundi
C45: 2025-11-03 | F45: 68 | G45: 62 | H45: 126 | I45: 26 | J45: 38.2% | K45: 2025-10-29 | L45: J-05 | M45: 8 | N45: 30.8% | P45: lundi
C46: 2025-11-03 | F46: 68 | G46: 62 | H46: 126 | I46: 26 | J46: 38.2% | K46: 2025-10-30 | L46: J-04 | M46: 14 | N46: 53.8% | P46: lundi
C47: 2025-11-03 | F47: 68 | G47: 62 | H47: 126 | I47: 26 | J47: 38.2% | K47: 2025-10-31 | L47: J-03 | M47: 20 | N47: 76.9% | P47: lundi
C48: 2025-11-03 | F48: 68 | G48: 62 | H48: 126 | I48: 26 | J48: 38.2% | K48: 2025-11-01 | L48: J-02 | M48: 26 | N48: 100.0% | P48: lundi
C49: 2025-11-03 | F49: 68 | G49: 62 | H49: 126 | I49: 26 | J49: 38.2% | K49: 2025-11-02 | L49: J-01 | M49: 31 | N49: 119.2% | P49: lundi
C50: 2025-11-03 | F50: 68 | G50: 62 | H50: 126 | I50: 26 | J50: 38.2% | K50: 2025-11-03 | L50: J | M50: 35 | N50: 134.6% | P50: lundi
C51: 2025-11-03 | F51: 68 | G51: 62 | H51: 126 | I51: 26 | J51: 38.2% | K51: 2025-11-04 | L51: J+01 | M51: =11+2+33 -> 46 | N51: 176.9% | P51: lundi
C52: 2025-11-03 | F52: 68 | G52: 62 | H52: 126 | I52: 26 | J52: 38.2% | K52: 2025-11-04 | L52: Réalisé | M52: =23+24 -> 47 | N52: 180.8% | P52: lundi
C53: 2025-11-03 | F53: 44 | G53: 83 | H53: 199 | I53: 99 | J53: 225.0% | K53: 2025-10-13 | L53: J-21 | M53: 6 | N53: 6.1% | P53: lundi
C54: 2025-11-03 | F54: 44 | G54: 83 | H54: 199 | I54: 99 | J54: 225.0% | K54: 2025-10-14 | L54: J-20 | M54: 6 | N54: 6.1% | P54: lundi
C55: 2025-11-03 | F55: 44 | G55: 83 | H55: 199 | I55: 99 | J55: 225.0% | K55: 2025-10-15 | L55: J-19 | M55: 9 | N55: 9.1% | P55: lundi
C56: 2025-11-03 | F56: 44 | G56: 83 | H56: 199 | I56: 99 | J56: 225.0% | K56: 2025-10-16 | L56: J-18 | M56: 10 | N56: 10.1% | P56: lundi
C57: 2025-11-03 | F57: 44 | G57: 83 | H57: 199 | I57: 99 | J57: 225.0% | K57: 2025-10-17 | L57: J-17 | M57: 10 | N57: 10.1% | P57: lundi
C58: 2025-11-03 | F58: 44 | G58: 83 | H58: 199 | I58: 99 | J58: 225.0% | K58: 2025-10-18 | L58: J-16 | M58: 10 | N58: 10.1% | P58: lundi
C59: 2025-11-03 | F59: 44 | G59: 83 | H59: 199 | I59: 99 | J59: 225.0% | K59: 2025-10-19 | L59: J-15 | M59: 10 | N59: 10.1% | P59: lundi
C60: 2025-11-03 | F60: 44 | G60: 83 | H60: 199 | I60: 99 | J60: 225.0% | K60: 2025-10-20 | L60: J-14 | M60: 11 | N60: 11.1% | P60: lundi
C61: 2025-11-03 | F61: 44 | G61: 83 | H61: 199 | I61: 99 | J61: 225.0% | K61: 2025-10-21 | L61: J-13 | M61: 12 | N61: 12.1% | P61: lundi
C62: 2025-11-03 | F62: 44 | G62: 83 | H62: 199 | I62: 99 | J62: 225.0% | K62: 2025-10-22 | L62: J-12 | M62: 12 | N62: 12.1% | P62: lundi
C63: 2025-11-03 | F63: 44 | G63: 83 | H63: 199 | I63: 99 | J63: 225.0% | K63: 2025-10-23 | L63: J-11 | M63: 12 | N63: 12.1% | P63: lundi
C64: 2025-11-03 | F64: 44 | G64: 83 | H64: 199 | I64: 99 | J64: 225.0% | K64: 2025-10-24 | L64: J-10 | M64: 12 | N64: 12.1% | P64: lundi
C65: 2025-11-03 | F65: 44 | G65: 83 | H65: 199 | I65: 99 | J65: 225.0% | K65: 2025-10-25 | L65: J-09 | M65: 13 | N65: 13.1% | P65: lundi
C66: 2025-11-03 | F66: 44 | G66: 83 | H66: 199 | I66: 99 | J66: 225.0% | K66: 2025-10-26 | L66: J-08 | M66: 13 | N66: 13.1% | P66: lundi
C67: 2025-11-03 | F67: 44 | G67: 83 | H67: 199 | I67: 99 | J67: 225.0% | K67: 2025-10-27 | L67: J-07 | M67: 14 | N67: 14.1% | P67: lundi
C68: 2025-11-03 | F68: 44 | G68: 83 | H68: 199 | I68: 99 | J68: 225.0% | K68: 2025-10-28 | L68: J-06 | M68: 34 | N68: 34.3% | P68: lundi
C69: 2025-11-03 | F69: 44 | G69: 83 | H69: 199 | I69: 99 | J69: 225.0% | K69: 2025-10-29 | L69: J-05 | M69: 41 | N69: 41.4% | P69: lundi
C70: 2025-11-03 | F70: 44 | G70: 83 | H70: 199 | I70: 99 | J70: 225.0% | K70: 2025-10-30 | L70: =IF(C70=K70, "J", IF(C70>K70, "J-" & IF(C70-K70<10, "0", "") & C70-K70, IF(AND(B70=B69,C70=C69,D70=D69,K70=K69), "Réalisé", "J+" & IF(K70-C70<10, "0", "") & K70-C70 ) ) ) -> J-04 | M70: 51 | N70: 51.5% | P70: lundi
C71: 2025-11-03 | F71: 44 | G71: 83 | H71: 199 | I71: 99 | J71: 225.0% | K71: 2025-10-31 | L71: J-03 | M71: 54 | N71: 54.5% | P71: lundi
C72: 2025-11-03 | F72: 44 | G72: 83 | H72: 199 | I72: 99 | J72: 225.0% | K72: 2025-11-01 | L72: J-02 | M72: 68 | N72: 68.7% | P72: lundi
C73: 2025-11-03 | F73: 44 | G73: 83 | H73: 199 | I73: 99 | J73: 225.0% | K73: 2025-11-02 | L73: J-01 | M73: 77 | N73: 77.8% | P73: lundi
C74: 2025-11-03 | F74: 44 | G74: 83 | H74: 199 | I74: 99 | J74: 225.0% | K74: 2025-11-03 | L74: J | M74: 73 | N74: 73.7% | P74: lundi
C75: 2025-11-03 | F75: 44 | G75: 83 | H75: 199 | I75: 99 | J75: 225.0% | K75: 2025-11-04 | L75: J+01 | M75: 82 | N75: 82.8% | P75: lundi
C76: 2025-11-03 | F76: 44 | G76: 83 | H76: 199 | I76: 99 | J76: 225.0% | K76: 2025-11-04 | L76: Réalisé | M76: 98 | N76: 99.0% | P76: lundi
C77: 2025-11-03 | F77: 47 | G77: 86 | H77: 119 | I77: 96 | J77: 204.3% | K77: 2025-10-13 | L77: J-21 | M77: 9 | N77: 9.4% | P77: lundi
C78: 2025-11-03 | F78: 47 | G78: 86 | H78: 119 | I78: 96 | J78: 204.3% | K78: 2025-10-14 | L78: J-20 | M78: 9 | N78: 9.4% | P78: lundi
C79: 2025-11-03 | F79: 47 | G79: 86 | H79: 119 | I79: 96 | J79: 204.3% | K79: 2025-10-15 | L79: J-19 | M79: 11 | N79: 11.5% | P79: lundi
C80: 2025-11-03 | F80: 47 | G80: 86 | H80: 119 | I80: 96 | J80: 204.3% | K80: 2025-10-16 | L80: J-18 | M80: 13 | N80: 13.5% | P80: lundi
C81: 2025-11-03 | F81: 47 | G81: 86 | H81: 119 | I81: 96 | J81: 204.3% | K81: 2025-10-17 | L81: J-17 | M81: 13 | N81: 13.5% | P81: lundi
C82: 2025-11-03 | F82: 47 | G82: 86 | H82: 119 | I82: 96 | J82: 204.3% | K82: 2025-10-18 | L82: J-16 | M82: 13 | N82: 13.5% | P82: lundi
C83: 2025-11-03 | F83: 47 | G83: 86 | H83: 119 | I83: 96 | J83: 204.3% | K83: 2025-10-19 | L83: J-15 | M83: 13 | N83: 13.5% | P83: lundi
C84: 2025-11-03 | F84: 47 | G84: 86 | H84: 119 | I84: 96 | J84: 204.3% | K84: 2025-10-20 | L84: J-14 | M84: 14 | N84: 14.6% | P84: lundi
C85: 2025-11-03 | F85: 47 | G85: 86 | H85: 119 | I85: 96 | J85: =IF(I85="","",I85/F85) -> 204.3% | K85: 2025-10-21 | L85: J-13 | M85: 14 | N85: =IF(M85="","",M85/I85) -> 14.6% | P85: =TEXT(C85,"jjjj") -> lundi
C86: 2025-11-03 | F86: 47 | G86: 86 | H86: 119 | I86: 96 | J86: 204.3% | K86: 2025-10-22 | L86: J-12 | M86: 14 | N86: 14.6% | P86: lundi
C87: 2025-11-03 | F87: 47 | G87: 86 | H87: 119 | I87: 96 | J87: 204.3% | K87: 2025-10-23 | L87: J-11 | M87: 17 | N87: 17.7% | P87: lundi
C88: 2025-11-03 | F88: 47 | G88: 86 | H88: 119 | I88: 96 | J88: 204.3% | K88: 2025-10-24 | L88: J-10 | M88: 17 | N88: 17.7% | P88: lundi
C89: 2025-11-03 | F89: 47 | G89: 86 | H89: 119 | I89: 96 | J89: 204.3% | K89: 2025-10-25 | L89: J-09 | M89: 17 | N89: 17.7% | P89: lundi
C90: 2025-11-03 | F90: 47 | G90: 86 | H90: 119 | I90: 96 | J90: 204.3% | K90: 2025-10-26 | L90: J-08 | M90: 17 | N90: 17.7% | P90: lundi
C91: 2025-11-03 | F91: 47 | G91: 86 | H91: 119 | I91: 96 | J91: 204.3% | K91: 2025-10-27 | L91: J-07 | M91: 18 | N91: 18.8% | P91: lundi
C92: 2025-11-03 | F92: 47 | G92: 86 | H92: 119 | I92: 96 | J92: 204.3% | K92: 2025-10-28 | L92: J-06 | M92: 38 | N92: 39.6% | P92: lundi
C93: 2025-11-03 | F93: 47 | G93: 86 | H93: 119 | I93: 96 | J93: 204.3% | K93: 2025-10-29 | L93: J-05 | M93: 39 | N93: 40.6% | P93: lundi
C94: 2025-11-03 | F94: 47 | G94: 86 | H94: 119 | I94: 96 | J94: 204.3% | K94: 2025-10-30 | L94: J-04 | M94: 55 | N94: 57.3% | P94: lundi
C95: 2025-11-03 | F95: 47 | G95: 86 | H95: 119 | I95: 96 | J95: 204.3% | K95: 2025-10-31 | L95: J-03 | M95: 58 | N95: 60.4% | P95: lundi
C96: 2025-11-03 | F96: 47 | G96: 86 | H96: 119 | I96: 96 | J96: 204.3% | K96: 2025-11-01 | L96: J-02 | M96: 60 | N96: 62.5% | P96: lundi
C97: 2025-11-03 | F97: 47 | G97: 86 | H97: 119 | I97: 96 | J97: 204.3% | K97: 2025-11-02 | L97: J-01 | M97: 61 | N97: 63.5% | P97: lundi
C98: 2025-11-03 | F98: 47 | G98: 86 | H98: 119 | I98: 96 | J98: 204.3% | K98: 2025-11-03 | L98: J | M98: 67 | N98: 69.8% | P98: lundi
C99: 2025-11-03 | F99: 47 | G99: 86 | H99: 119 | I99: 96 | J99: 204.3% | K99: 2025-11-04 | L99: J+01 | M99: 68 | N99: 70.8% | P99: lundi
C100: 2025-11-03 | F100: 47 | G100: 86 | H100: 119 | I100: 96 | J100: 204.3% | K100: 2025-11-04 | L100: Réalisé | M100: 80 | N100: 83.3% | P100: lundi
C101: 2025-11-04 | F101: 78 | G101: 71 | H101: 128 | I101: 28 | J101: 35.9% | K101: 2025-10-14 | L101: J-21 | M101: 4 | N101: 14.3% | P101: mardi
C102: 2025-11-04 | F102: 78 | G102: 71 | H102: 128 | I102: 28 | J102: 35.9% | K102: 2025-10-15 | L102: J-20 | M102: 4 | N102: 14.3% | P102: mardi
C103: 2025-11-04 | F103: 78 | G103: 71 | H103: 128 | I103: 28 | J103: 35.9% | K103: 2025-10-16 | L103: J-19 | M103: 6 | N103: 21.4% | P103: mardi
C104: 2025-11-04 | F104: 78 | G104: 71 | H104: 128 | I104: 28 | J104: 35.9% | K104: 2025-10-17 | L104: J-18 | M104: 7 | N104: 25.0% | P104: mardi
C105: 2025-11-04 | F105: 78 | G105: 71 | H105: 128 | I105: 28 | J105: 35.9% | K105: 2025-10-18 | L105: J-17 | M105: 7 | N105: 25.0% | P105: mardi
C106: 2025-11-04 | F106: 78 | G106: 71 | H106: 128 | I106: 28 | J106: 35.9% | K106: 2025-10-19 | L106: J-16 | M106: 7 | N106: 25.0% | P106: mardi
C107: 2025-11-04 | F107: 78 | G107: 71 | H107: 128 | I107: 28 | J107: 35.9% | K107: 2025-10-20 | L107: J-15 | M107: 7 | N107: 25.0% | P107: mardi
C108: 2025-11-04 | F108: 78 | G108: 71 | H108: 128 | I108: 28 | J108: 35.9% | K108: 2025-10-21 | L108: J-14 | M108: 11 | N108: 39.3% | P108: mardi
C109: 2025-11-04 | F109: 78 | G109: 71 | H109: 128 | I109: 28 | J109: 35.9% | K109: 2025-10-22 | L109: J-13 | M109: 13 | N109: 46.4% | P109: mardi
C110: 2025-11-04 | F110: 78 | G110: 71 | H110: 128 | I110: 28 | J110: 35.9% | K110: 2025-10-23 | L110: J-12 | M110: 14 | N110: 50.0% | P110: mardi
C111: 2025-11-04 | F111: 78 | G111: 71 | H111: 128 | I111: 28 | J111: 35.9% | K111: 2025-10-24 | L111: J-11 | M111: 15 | N111: 53.6% | P111: mardi
C112: 2025-11-04 | F112: 78 | G112: 71 | H112: 128 | I112: 28 | J112: 35.9% | K112: 2025-10-25 | L112: J-10 | M112: 16 | N112: 57.1% | P112: mardi
C113: 2025-11-04 | F113: 78 | G113: 71 | H113: 128 | I113: 28 | J113: 35.9% | K113: 2025-10-26 | L113: J-09 | M113: 16 | N113: 57.1% | P113: mardi
C114: 2025-11-04 | F114: 78 | G114: 71 | H114: 128 | I114: 28 | J114: 35.9% | K114: 2025-10-27 | L114: J-08 | M114: 17 | N114: 60.7% | P114: mardi
C115: 2025-11-04 | F115: 78 | G115: 71 | H115: 128 | I115: 28 | J115: 35.9% | K115: 2025-10-28 | L115: J-07 | M115: 17 | N115: 60.7% | P115: mardi
C116: 2025-11-04 | F116: 78 | G116: 71 | H116: 128 | I116: 28 | J116: 35.9% | K116: 2025-10-29 | L116: J-06 | M116: 18 | N116: 64.3% | P116: mardi
C117: 2025-11-04 | F117: 78 | G117: 71 | H117: 128 | I117: 28 | J117: 35.9% | K117: 2025-10-30 | L117: J-05 | M117: 22 | N117: 78.6% | P117: mardi
C118: 2025-11-04 | F118: 78 | G118: 71 | H118: 197 | I118: 97 | J118: 124.4% | K118: 2025-10-31 | L118: J-04 | M118: 24 | N118: 24.7% | P118: mardi
C119: 2025-11-04 | F119: 78 | G119: 71 | H119: 197 | I119: 97 | J119: 124.4% | K119: 2025-11-01 | L119: J-03 | M119: 26 | N119: 26.8% | P119: mardi
C120: 2025-11-04 | F120: 78 | G120: 71 | H120: 197 | I120: 97 | J120: 124.4% | K120: 2025-11-02 | L120: J-02 | M120: 27 | N120: 27.8% | P120: mardi
C121: 2025-11-04 | F121: 78 | G121: 71 | H121: 197 | I121: 97 | J121: 124.4% | K121: 2025-11-03 | L121: J-01 | M121: 32 | N121: 33.0% | P121: mardi
C122: 2025-11-04 | F122: 78 | G122: 71 | H122: 197 | I122: 97 | J122: 124.4% | K122: 2025-11-04 | L122: J | M122: 42 | N122: 43.3% | P122: mardi
C123: 2025-11-04 | F123: 78 | G123: 71 | H123: 197 | I123: 97 | J123: 124.4% | K123: 2025-11-05 | L123: J+01 | M123: =10+11+30 -> 51 | N123: 52.6% | P123: mardi
C124: 2025-11-04 | F124: 78 | G124: 71 | H124: 197 | I124: 97 | J124: 124.4% | K124: 2025-11-05 | L124: Réalisé | M124: 53 | N124: 54.6% | P124: mardi
C125: 2025-11-04 | F125: 84 | G125: 77 | H125: 134 | I125: 34 | J125: 40.5% | K125: 2025-10-14 | L125: J-21 | M125: 0 | N125: 0.0% | P125: mardi
C126: 2025-11-04 | F126: 84 | G126: 77 | H126: 134 | I126: 34 | J126: 40.5% | K126: 2025-10-15 | L126: J-20 | M126: 10 | N126: 29.4% | P126: mardi
C127: 2025-11-04 | F127: 84 | G127: 77 | H127: 134 | I127: 34 | J127: 40.5% | K127: 2025-10-16 | L127: J-19 | M127: 10 | N127: 29.4% | P127: mardi
C128: 2025-11-04 | F128: 84 | G128: 77 | H128: 134 | I128: 34 | J128: 40.5% | K128: 2025-10-17 | L128: J-18 | M128: 11 | N128: 32.4% | P128: mardi
C129: 2025-11-04 | F129: 84 | G129: 77 | H129: 134 | I129: 34 | J129: 40.5% | K129: 2025-10-18 | L129: J-17 | M129: 11 | N129: 32.4% | P129: mardi
C130: 2025-11-04 | F130: 84 | G130: 77 | H130: 134 | I130: 34 | J130: 40.5% | K130: 2025-10-19 | L130: J-16 | M130: 11 | N130: 32.4% | P130: mardi
C131: 2025-11-04 | F131: 84 | G131: 77 | H131: 134 | I131: 34 | J131: 40.5% | K131: 2025-10-20 | L131: J-15 | M131: 11 | N131: 32.4% | P131: mardi
C132: 2025-11-04 | F132: 84 | G132: 77 | H132: 134 | I132: 34 | J132: 40.5% | K132: 2025-10-21 | L132: J-14 | M132: 17 | N132: 50.0% | P132: mardi
C133: 2025-11-04 | F133: 84 | G133: 77 | H133: 134 | I133: 34 | J133: 40.5% | K133: 2025-10-22 | L133: J-13 | M133: 17 | N133: 50.0% | P133: mardi
C134: 2025-11-04 | F134: 84 | G134: 77 | H134: 134 | I134: 34 | J134: 40.5% | K134: 2025-10-23 | L134: =IF(C134=K134, "J", IF(C134>K134, "J-" & IF(C134-K134<10, "0", "") & C134-K134, IF(AND(B134=B133,C134=C133,D134=D133,K134=K133), "Réalisé", "J+" & IF(K134-C134<10, "0", "") & K134-C134 ) ) ) -> J-12 | M134: 19 | N134: 55.9% | P134: mardi
C135: 2025-11-04 | F135: 84 | G135: 77 | H135: 134 | I135: 34 | J135: 40.5% | K135: 2025-10-24 | L135: J-11 | M135: 20 | N135: 58.8% | P135: mardi
C136: 2025-11-04 | F136: 84 | G136: 77 | H136: 134 | I136: 34 | J136: 40.5% | K136: 2025-10-25 | L136: J-10 | M136: 20 | N136: 58.8% | P136: mardi
C137: 2025-11-04 | F137: 84 | G137: 77 | H137: 134 | I137: 34 | J137: 40.5% | K137: 2025-10-26 | L137: J-09 | M137: 20 | N137: 58.8% | P137: mardi
C138: 2025-11-04 | F138: 84 | G138: 77 | H138: 134 | I138: 34 | J138: 40.5% | K138: 2025-10-27 | L138: J-08 | M138: 21 | N138: 61.8% | P138: mardi
C139: 2025-11-04 | F139: 84 | G139: 77 | H139: 134 | I139: 34 | J139: 40.5% | K139: 2025-10-28 | L139: J-07 | M139: 26 | N139: 76.5% | P139: mardi
C140: 2025-11-04 | F140: 84 | G140: 77 | H140: 134 | I140: 34 | J140: 40.5% | K140: 2025-10-29 | L140: J-06 | M140: 30 | N140: 88.2% | P140: mardi
C141: 2025-11-04 | F141: 84 | G141: 77 | H141: 134 | I141: 34 | J141: 40.5% | K141: 2025-10-30 | L141: J-05 | M141: 36 | N141: 105.9% | P141: mardi
C142: 2025-11-04 | F142: 84 | G142: 77 | H142: 134 | I142: 34 | J142: 40.5% | K142: 2025-10-31 | L142: J-04 | M142: 38 | N142: 111.8% | P142: mardi
C143: 2025-11-04 | F143: 84 | G143: 77 | H143: 134 | I143: 34 | J143: 40.5% | K143: 2025-11-01 | L143: J-03 | M143: 51 | N143: 150.0% | P143: mardi
C144: 2025-11-04 | F144: 84 | G144: 77 | H144: 134 | I144: 34 | J144: 40.5% | K144: 2025-11-02 | L144: J-02 | M144: 53 | N144: 155.9% | P144: mardi
C145: 2025-11-04 | F145: 84 | G145: 77 | H145: 134 | I145: 34 | J145: 40.5% | K145: 2025-11-03 | L145: J-01 | M145: 55 | N145: 161.8% | P145: mardi
C146: 2025-11-04 | F146: 84 | G146: 77 | H146: 134 | I146: 34 | J146: 40.5% | K146: 2025-11-04 | L146: J | M146: 62 | N146: 182.4% | P146: mardi
C147: 2025-11-04 | F147: 84 | G147: 77 | H147: 134 | I147: 34 | J147: 40.5% | K147: 2025-11-05 | L147: J+01 | M147: =5+24+32 -> 61 | N147: 179.4% | P147: mardi
C148: 2025-11-04 | F148: 84 | G148: 77 | H148: 134 | I148: 34 | J148: 40.5% | K148: 2025-11-05 | L148: Réalisé | M148: 65 | N148: 191.2% | P148: mardi
C149: 2025-11-04 | F149: 197 | G149: 44 | H149: 149 | I149: 7 | J149: =IF(I149="","",I149/F149) -> 3.6% | K149: 2025-10-14 | L149: J-21 | M149: 9 | N149: =IF(M149="","",M149/I149) -> 128.6% | P149: =TEXT(C149,"jjjj") -> mardi
C150: 2025-11-04 | F150: 197 | G150: 44 | H150: 149 | I150: 7 | J150: 3.6% | K150: 2025-10-15 | L150: J-20 | M150: 9 | N150: 128.6% | P150: mardi
C151: 2025-11-04 | F151: 197 | G151: 44 | H151: 149 | I151: 7 | J151: 3.6% | K151: 2025-10-16 | L151: J-19 | M151: 9 | N151: 128.6% | P151: mardi
C152: 2025-11-04 | F152: 197 | G152: 44 | H152: 149 | I152: 7 | J152: 3.6% | K152: 2025-10-17 | L152: J-18 | M152: 9 | N152: 128.6% | P152: mardi
C153: 2025-11-04 | F153: 197 | G153: 44 | H153: 149 | I153: 7 | J153: 3.6% | K153: 2025-10-18 | L153: J-17 | M153: 9 | N153: 128.6% | P153: mardi
C154: 2025-11-04 | F154: 197 | G154: 44 | H154: 149 | I154: 7 | J154: 3.6% | K154: 2025-10-19 | L154: J-16 | M154: 9 | N154: 128.6% | P154: mardi
C155: 2025-11-04 | F155: 197 | G155: 44 | H155: 149 | I155: 7 | J155: 3.6% | K155: 2025-10-20 | L155: J-15 | M155: 9 | N155: 128.6% | P155: mardi
C156: 2025-11-04 | F156: 197 | G156: 44 | H156: 149 | I156: 7 | J156: 3.6% | K156: 2025-10-21 | L156: J-14 | M156: 10 | N156: 142.9% | P156: mardi
C157: 2025-11-04 | F157: 197 | G157: 44 | H157: 149 | I157: 7 | J157: 3.6% | K157: 2025-10-22 | L157: J-13 | M157: 10 | N157: 142.9% | P157: mardi
C158: 2025-11-04 | F158: 197 | G158: 44 | H158: 149 | I158: 7 | J158: 3.6% | K158: 2025-10-23 | L158: J-12 | M158: 10 | N158: 142.9% | P158: mardi
C159: 2025-11-04 | F159: 197 | G159: 44 | H159: 149 | I159: 7 | J159: 3.6% | K159: 2025-10-24 | L159: J-11 | M159: 10 | N159: 142.9% | P159: mardi
C160: 2025-11-04 | F160: 197 | G160: 44 | H160: 149 | I160: 7 | J160: 3.6% | K160: 2025-10-25 | L160: J-10 | M160: 13 | N160: 185.7% | P160: mardi
C161: 2025-11-04 | F161: 197 | G161: 44 | H161: 149 | I161: 7 | J161: 3.6% | K161: 2025-10-26 | L161: J-09 | M161: 13 | N161: 185.7% | P161: mardi
C162: 2025-11-04 | F162: 197 | G162: 44 | H162: 149 | I162: 7 | J162: 3.6% | K162: 2025-10-27 | L162: J-08 | M162: 13 | N162: 185.7% | P162: mardi
C163: 2025-11-04 | F163: 197 | G163: 44 | H163: 149 | I163: 7 | J163: 3.6% | K163: 2025-10-28 | L163: J-07 | M163: 14 | N163: 200.0% | P163: mardi
C164: 2025-11-04 | F164: 197 | G164: 44 | H164: 149 | I164: 7 | J164: 3.6% | K164: 2025-10-29 | L164: J-06 | M164: 46 | N164: 657.1% | P164: mardi
C165: 2025-11-04 | F165: 197 | G165: 44 | H165: 149 | I165: 7 | J165: 3.6% | K165: 2025-10-30 | L165: J-05 | M165: 51 | N165: 728.6% | P165: mardi
C166: 2025-11-04 | F166: 197 | G166: 44 | H166: 149 | I166: 7 | J166: 3.6% | K166: 2025-10-31 | L166: J-04 | M166: 59 | N166: 842.9% | P166: mardi
C167: 2025-11-04 | F167: 197 | G167: 44 | H167: 149 | I167: 7 | J167: 3.6% | K167: 2025-11-01 | L167: J-03 | M167: 63 | N167: 900.0% | P167: mardi
C168: 2025-11-04 | F168: 197 | G168: 44 | H168: 149 | I168: 7 | J168: 3.6% | K168: 2025-11-02 | L168: J-02 | M168: 62 | N168: 885.7% | P168: mardi
C169: 2025-11-04 | F169: 197 | G169: 44 | H169: 149 | I169: 7 | J169: 3.6% | K169: 2025-11-03 | L169: J-01 | M169: 64 | N169: 914.3% | P169: mardi
C170: 2025-11-04 | F170: 197 | G170: 44 | H170: 149 | I170: 7 | J170: 3.6% | K170: 2025-11-04 | L170: J | M170: 80 | N170: 1142.9% | P170: mardi
C171: 2025-11-04 | F171: 197 | G171: 44 | H171: 149 | I171: 7 | J171: 3.6% | K171: 2025-11-05 | L171: J+01 | M171: 77 | N171: 1100.0% | P171: mardi
C172: 2025-11-04 | F172: 197 | G172: 44 | H172: 149 | I172: 7 | J172: 3.6% | K172: 2025-11-05 | L172: Réalisé | M172: 90 | N172: 1285.7% | P172: mardi
C173: 2025-11-04 | F173: 114 | G173: 191 | H173: 149 | I173: 24 | J173: 21.1% | K173: 2025-10-14 | L173: J-21 | M173: 9 | N173: 37.5% | P173: mardi
C174: 2025-11-04 | F174: 114 | G174: 191 | H174: 149 | I174: 24 | J174: 21.1% | K174: 2025-10-15 | L174: J-20 | M174: 10 | N174: 41.7% | P174: mardi
C175: 2025-11-04 | F175: 114 | G175: 191 | H175: 149 | I175: 24 | J175: 21.1% | K175: 2025-10-16 | L175: J-19 | M175: 11 | N175: 45.8% | P175: mardi
C176: 2025-11-04 | F176: 114 | G176: 191 | H176: 149 | I176: 24 | J176: 21.1% | K176: 2025-10-17 | L176: J-18 | M176: 11 | N176: 45.8% | P176: mardi
C177: 2025-11-04 | F177: 114 | G177: 191 | H177: 149 | I177: 24 | J177: 21.1% | K177: 2025-10-18 | L177: J-17 | M177: 11 | N177: 45.8% | P177: mardi
C178: 2025-11-04 | F178: 114 | G178: 191 | H178: 149 | I178: 24 | J178: 21.1% | K178: 2025-10-19 | L178: J-16 | M178: 12 | N178: 50.0% | P178: mardi
C179: 2025-11-04 | F179: 114 | G179: 191 | H179: 149 | I179: 24 | J179: 21.1% | K179: 2025-10-20 | L179: J-15 | M179: 12 | N179: 50.0% | P179: mardi
C180: 2025-11-04 | F180: 114 | G180: 191 | H180: 149 | I180: 24 | J180: 21.1% | K180: 2025-10-21 | L180: J-14 | M180: 12 | N180: 50.0% | P180: mardi
C181: 2025-11-04 | F181: 114 | G181: 191 | H181: 149 | I181: 24 | J181: 21.1% | K181: 2025-10-22 | L181: J-13 | M181: 12 | N181: 50.0% | P181: mardi
C182: 2025-11-04 | F182: 114 | G182: 191 | H182: 149 | I182: 24 | J182: 21.1% | K182: 2025-10-23 | L182: J-12 | M182: 13 | N182: 54.2% | P182: mardi
C183: 2025-11-04 | F183: 114 | G183: 191 | H183: 149 | I183: 24 | J183: 21.1% | K183: 2025-10-24 | L183: J-11 | M183: 13 | N183: 54.2% | P183: mardi
C184: 2025-11-04 | F184: 114 | G184: 191 | H184: 149 | I184: 24 | J184: 21.1% | K184: 2025-10-25 | L184: J-10 | M184: 14 | N184: 58.3% | P184: mardi
C185: 2025-11-04 | F185: 114 | G185: 191 | H185: 149 | I185: 24 | J185: 21.1% | K185: 2025-10-26 | L185: J-09 | M185: 16 | N185: 66.7% | P185: mardi
C186: 2025-11-04 | F186: 114 | G186: 191 | H186: 149 | I186: 24 | J186: 21.1% | K186: 2025-10-27 | L186: J-08 | M186: 17 | N186: 70.8% | P186: mardi
C187: 2025-11-04 | F187: 114 | G187: 191 | H187: 149 | I187: 24 | J187: 21.1% | K187: 2025-10-28 | L187: J-07 | M187: 18 | N187: 75.0% | P187: mardi
C188: 2025-11-04 | F188: 114 | G188: 191 | H188: 149 | I188: 24 | J188: 21.1% | K188: 2025-10-29 | L188: J-06 | M188: 33 | N188: 137.5% | P188: mardi
C189: 2025-11-04 | F189: 114 | G189: 191 | H189: 149 | I189: 24 | J189: 21.1% | K189: 2025-10-30 | L189: J-05 | M189: 36 | N189: 150.0% | P189: mardi
C190: 2025-11-04 | F190: 114 | G190: 191 | H190: 149 | I190: 24 | J190: 21.1% | K190: 2025-10-31 | L190: J-04 | M190: 55 | N190: 229.2% | P190: mardi
C191: 2025-11-04 | F191: 114 | G191: 191 | H191: 149 | I191: 24 | J191: 21.1% | K191: 2025-11-01 | L191: J-03 | M191: 56 | N191: 233.3% | P191: mardi
C192: 2025-11-04 | F192: 114 | G192: 191 | H192: 149 | I192: 24 | J192: 21.1% | K192: 2025-11-02 | L192: J-02 | M192: 56 | N192: 233.3% | P192: mardi
C193: 2025-11-04 | F193: 114 | G193: 191 | H193: 149 | I193: 24 | J193: 21.1% | K193: 2025-11-03 | L193: J-01 | M193: 55 | N193: 229.2% | P193: mardi
C194: 2025-11-04 | F194: 114 | G194: 191 | H194: 149 | I194: 24 | J194: 21.1% | K194: 2025-11-04 | L194: J | M194: 69 | N194: 287.5% | P194: mardi
C195: 2025-11-04 | F195: 114 | G195: 191 | H195: 149 | I195: 24 | J195: 21.1% | K195: 2025-11-05 | L195: J+01 | M195: 69 | N195: 287.5% | P195: mardi
C196: 2025-11-04 | F196: 114 | G196: 191 | H196: 149 | I196: 24 | J196: 21.1% | K196: 2025-11-05 | L196: Réalisé | M196: 95 | N196: 395.8% | P196: mardi
C197: 2025-11-05 | F197: 64 | G197: 48 | H197: 199 | I197: 99 | J197: 154.7% | K197: 2025-10-15 | L197: J-21 | M197: 2 | N197: 2.0% | P197: mercredi
C198: 2025-11-05 | F198: 64 | G198: 48 | H198: 199 | I198: 99 | J198: 154.7% | K198: 2025-10-16 | L198: =IF(C198=K198, "J", IF(C198>K198, "J-" & IF(C198-K198<10, "0", "") & C198-K198, IF(AND(B198=B197,C198=C197,D198=D197,K198=K197), "Réalisé", "J+" & IF(K198-C198<10, "0", "") & K198-C198 ) ) ) -> J-20 | M198: 3 | N198: 3.0% | P198: mercredi
C199: 2025-11-05 | F199: 64 | G199: 48 | H199: 199 | I199: 99 | J199: 154.7% | K199: 2025-10-17 | L199: J-19 | M199: 4 | N199: 4.0% | P199: mercredi
C200: 2025-11-05 | F200: 64 | G200: 48 | H200: 199 | I200: 99 | J200: 154.7% | K200: 2025-10-18 | L200: J-18 | M200: 4 | N200: 4.0% | P200: mercredi
C201: 2025-11-05 | F201: 64 | G201: 48 | H201: 199 | I201: 99 | J201: 154.7% | K201: 2025-10-19 | L201: J-17 | M201: 4 | N201: 4.0% | P201: mercredi
C202: 2025-11-05 | F202: 64 | G202: 48 | H202: 199 | I202: 99 | J202: 154.7% | K202: 2025-10-20 | L202: J-16 | M202: 4 | N202: 4.0% | P202: mercredi
C203: 2025-11-05 | F203: 64 | G203: 48 | H203: 199 | I203: 99 | J203: 154.7% | K203: 2025-10-21 | L203: J-15 | M203: 4 | N203: 4.0% | P203: mercredi
... 4578 more rows
